bitfinex/quotes_ETHUSD_20241203
["timestamp","ask_amount","ask_price","bid_price","bid_amount"]
[1733268485278,0.275682,3627.3,3626.4,0.9782]
[1733268485479,0.275682,3627.3,3626.5,2.7574]
[1733268485794,3.77757,3627.7,3626.8,0.9736]
[1733268486289,2.75668,3627.6,3626.8,0.9736]
[1733268486591,1.021,3627.7,3626.8,0.9736]
[1733268486889,2.75687,3627.3,3626.5,1.062]
[1733268487243,0.275687,3627.3,3626.5,3.81947]
[1733268487445,1.0632,3627.2,3626.3,1.062]
[1733268488239,1.0632,3627.2,3626.3,3.81961]
[1733268490067,3.82015,3627.2,3626.3,1.062]
[1733268490268,1.0632,3627.2,3626.3,1.062]
[1733268490574,2.75719,3626.9,3626.3,1.062]
[1733268491076,0.67597526,3627.1,3626.0,1.0278]
[1733268491280,2.75732,3626.8,3626.0,1.0278]
[1733268492164,2.75735,3626.7,3626.0,1.0159]
[1733268492392,5.51434,3626.9,3625.3,2.75832]
[1733268492639,0.67597526,3627.1,3625.3,2.75832]
[1733268492640,2.7576,3626.4,3625.3,2.75832]
[1733268493443,2.75781,3626.1,3625.0,2.75855]
[1733268493637,0.9933,3626.0,3625.0,2.75855]
[1733268493847,3.75118,3626.0,3625.0,2.75855]
[1733268494001,0.375118,3625.9,3625.2,2.75839]
[1733268494202,0.41148615,3626.5,3625.4,2.6640456]
[1733268494401,0.411623,3626.6,3625.5,2.75824]
[1733268494651,0.9933,3626.7,3625.4,2.6640456]
[1733268494854,0.9933,3626.7,3625.3,3.18811843]
[1733268494855,0.25725311,3626.6,3625.6,2.75809]
[1733268495158,0.25725311,3626.5,3626.0,2.75779]
[1733268495318,0.9933,3626.7,3626.1,0.9798]
[1733268495658,1.31573148,3627.0,3626.1,0.9798]
[1733268495950,2.75746,3626.6,3625.6,0.9767]
[1733268496098,0.25735712,3626.5,3625.6,3.73484]
[1733268496302,1.22815712,3626.4,3625.6,0.9767]
[1733268496554,0.25735712,3626.3,3625.6,0.9767]
[1733268496855,0.47268741,3626.3,3625.4,1.0371]
[1733268497851,0.9708,3626.4,3625.6,2.75809]
[1733268498513,0.9708,3626.4,3625.4,3.79539]
[1733268498854,0.9708,3626.4,3625.4,1.0371]
[1733268499006,0.9708,3626.4,3625.4,3.79538]
[1733268499397,3.72839,3626.4,3625.4,3.79538]
[1733268499631,0.40579207,3626.3,3625.4,2.75828]
[1733268502290,0.25747448,3626.2,3625.4,2.7583]
[1733268502580,4.05785435,3626.4,3625.4,2.7583]
[1733268502786,0.51483684,3626.3,3625.4,2.7583]
[1733268502936,0.2574184,3626.2,3625.4,2.7583]
[1733268503131,4.0578536,3626.4,3625.4,2.7583]
[1733268503376,0.70437168,3626.3,3625.4,2.7583]
[1733268503528,0.44698128,3626.3,3625.4,2.7583]
[1733268503845,0.44698128,3626.3,3625.1,1.0475]
[1733268503846,0.25738526,3626.2,3625.1,1.0475]
[1733268504036,0.44698128,3626.3,3625.3,2.75836]
[1733268504377,0.25738836,3626.2,3625.3,2.75836]
[1733268504545,0.44327696,3626.1,3625.3,2.75836]
[1733268505250,0.44327696,3626.1,3625.1,1.0475]
[1733268505454,3.72836,3626.4,3625.3,2.75832]
[1733268505774,0.25742038,3626.3,3625.3,2.75832]
[1733268505972,0.25742038,3626.2,3625.1,1.0475]
[1733268506135,3.72836,3626.4,3625.1,1.0475]
[1733268506136,3.72836,3626.4,3625.4,2.7583]
[1733268506330,0.25740705,3626.3,3625.4,2.7583]
[1733268506561,0.65598376,3626.2,3625.4,2.7583]
[1733268506801,0.39857671,3626.2,3625.4,2.7583]
[1733268506937,1.0632,3626.1,3625.4,2.7583]
[1733268507280,1.0632,3626.1,3625.1,1.0475]
[1733268507450,2.75803,3625.8,3624.8,0.1580641]
[1733268507633,4.07879101,3625.7,3624.8,0.1580641]
[1733268507846,3.01574615,3625.6,3624.8,0.1580641]
[1733268508062,2.7582,3625.6,3624.8,0.1580641]
[1733268508273,1.0632,3625.7,3624.8,0.1580641]
[1733268508486,3.77981,3625.1,3624.8,0.1580641]
[1733268508785,1.0212,3625.1,3624.8,0.1580641]
[1733268508932,3.42823941,3625.0,3624.8,0.1580641]
[1733268509137,0.66961941,3624.9,3624.8,0.1580641]
[1733268509941,3.01623557,3624.9,3624.8,0.1580641]
[1733268510046,3.45294496,3624.9,3624.8,0.1580641]
[1733268510253,0.69425496,3624.9,3624.8,0.1580641]
[1733268511036,3.98723557,3624.9,3624.8,0.1580641]
[1733268511949,1.22854557,3624.9,3624.8,0.1580641]
[1733268512369,0.971,3624.9,3624.8,0.1580641]
[1733268512572,1.228124,3624.9,3624.8,0.1580641]
[1733268512884,0.971,3624.9,3624.8,0.1580641]
[1733268513187,1.9173342,3624.9,3624.8,0.1580641]
[1733268513481,4.6760242,3624.9,3624.8,0.1580641]
[1733268513641,4.41890635,3624.9,3624.8,0.1580641]
[1733268513983,4.67596252,3624.9,3624.8,0.1580641]
[1733268514357,4.41890635,3624.9,3624.8,0.1480641]
[1733268514679,4.67590471,3624.9,3624.8,0.1352641]
[1733268514879,4.41890635,3624.9,3624.8,0.1224641]
[1733268517743,4.6758931,3624.9,3624.8,0.1224641]
[1733268517954,3.73316,3624.6,3623.1,1.0272]
[1733268518152,0.9742,3624.3,3623.1,3.78725]
[1733268518371,2.75934,3624.1,3623.1,3.78725]
[1733268518574,0.9742,3624.3,3623.1,1.0272]
[1733268518766,2.75939,3624.0,3623.1,1.0272]
[1733268518948,2.75947,3623.9,3623.1,1.0272]
[1733268519143,2.7597,3623.6,3623.1,1.0272]
[1733268519391,2.7597,3623.6,3622.4,2.6640456]
[1733268519392,1.0288,3623.5,3622.5,1.0319]
[1733268519580,1.0288,3623.5,3622.6,2.76038]
[1733268520097,1.0288,3623.5,3622.7,2.76036]
[1733268520430,1.0288,3623.5,3622.6,2.76044]
[1733268521147,1.0288,3623.5,3622.5,1.0319]
[1733268521403,1.0288,3623.5,3622.5,3.79239]
[1733268521575,1.407649,3623.5,3622.5,3.79239]
[1733268522095,1.407649,3623.5,3622.6,2.76041]
[1733268522289,1.407649,3623.5,3622.5,1.0319]
[1733268522290,4.167409,3623.5,3622.5,1.0319]
[1733268522518,4.167409,3623.5,3622.5,3.79241]
[1733268523369,1.407649,3623.5,3622.5,3.79241]
[1733268523569,0.1407649,3623.4,3622.5,3.79241]
[1733268523751,0.1407649,3623.4,3622.5,1.0319]
[1733268524153,0.1407649,3623.4,3622.2,0.9766]
[1733268524352,2.9006349,3623.4,3622.2,3.73733]
[1733268524615,3.0165655,3623.3,3622.2,3.73733]
[1733268524789,1.61167854,3623.2,3622.3,2.76066]
[1733268525104,1.0393,3623.2,3622.2,3.6406456]
[1733268525580,1.0393,3623.2,3622.3,2.76063]
[1733268526046,1.0393,3623.2,3622.2,3.6406456]
[1733268526271,1.0393,3623.2,3622.4,2.76059]
[1733268526781,1.0393,3623.2,3622.1,2.76076]
[1733268526977,0.379923,3623.1,3622.1,2.76076]
[1733268527178,1.0393,3623.2,3621.9,0.966]
[1733268527381,1.0393,3623.2,3622.2,2.76073]
[1733268527911,1.0393,3623.2,3621.9,0.966]
[1733268528222,1.0393,3623.2,3622.2,2.6640456]
[1733268528380,1.0393,3623.2,3622.5,2.76052]
[1733268528584,1.0393,3623.2,3622.4,2.76058]
[1733268528783,1.0393,3623.2,3621.8,2.76104]
[1733268528985,1.0012,3622.8,3621.6,2.76113]
[1733268529207,1.0012,3622.6,3621.6,2.76113]
[1733268529523,1.0012,3622.6,3621.7,2.76111]
[1733268529805,1.0012,3622.6,3621.5,2.76125]
[1733268530223,3.0,3622.6,3621.3,2.76142]
[1733268530404,3.0,3622.6,3621.2,3.8097097]
[1733268530405,1.0363,3622.5,3621.4,2.76129]
[1733268530598,0.7172958,3622.4,3621.5,2.76125]
[1733268530925,0.7172958,3622.4,3621.7,2.76109]
[1733268531087,0.35839459,3623.3,3621.8,2.76105]
[1733268531088,1.0363,3623.2,3621.8,2.76105]
[1733268531264,1.0363,3623.2,3621.7,1.0011]
[1733268531785,3.4103836,3623.4,3621.7,1.0011]
[1733268532034,3.0,3623.1,3622.1,2.76079]
[1733268532402,1.0363,3623.0,3621.7,1.0011]
[1733268532570,1.0363,3623.0,3622.2,2.76071]
[1733268532571,0.40363,3622.9,3622.2,2.76071]
[1733268532912,1.0363,3623.0,3622.3,2.76066]
[1733268533119,1.0363,3623.0,3622.4,2.76055]
[1733268533415,1.0363,3623.0,3622.1,2.76082]
[1733268533572,1.0363,3623.0,3622.4,2.76054]
[1733268533781,1.0363,3623.0,3622.0,2.6640456]
[1733268533978,1.0363,3623.0,3622.6,2.76037]
[1733268535179,1.0363,3623.0,3622.2,1.0127]
[1733268535323,1.0363,3623.0,3622.6,2.76042]
[1733268535933,0.2567821,3623.5,3622.8,5.4243356]
[1733268536232,3.12311456,3624.2,3622.8,5.4243356]
[1733268536233,0.9921,3623.4,3622.8,2.6640456]
[1733268536585,0.9921,3623.4,3622.7,0.972]
[1733268536820,0.9921,3623.4,3623.0,2.76013]
[1733268538011,0.9921,3623.4,3622.7,0.972]
[1733268538214,3.75196,3623.4,3622.3,2.76066]
[1733268538401,2.76016,3623.0,3621.9,2.76093]
[1733268538597,1.0055,3622.9,3621.7,2.7611]
[1733268538800,1.0055,3622.8,3621.7,2.7611]
[1733268539302,1.0055,3622.8,3621.6,2.6640456]
[1733268539701,2.7603,3622.8,3621.7,2.76106]
[1733268540024,1.59030257,3622.7,3621.7,2.76106]
[1733268540193,1.0569,3622.5,3621.5,2.76127]
[1733268540813,1.0569,3622.5,3621.3,2.7614]
[1733268540984,1.0569,3622.3,3621.2,0.1580641]
[1733268541220,1.0569,3622.3,3621.4,2.76135]
[1733268541664,0.25744694,3622.2,3621.4,2.76135]
[1733268541867,0.25744694,3622.1,3621.4,2.76135]
[1733268542173,0.4486862,3622.2,3621.3,2.76141]
[1733268542353,3.81758,3622.3,3621.3,2.76141]
[1733268542354,0.25744943,3622.0,3621.3,2.76141]
[1733268542557,0.25744943,3622.1,3621.2,2.9195641]
[1733268542848,0.25744943,3621.9,3621.2,0.1580641]
[1733268543047,0.41189414,3622.2,3621.4,2.76133]
[1733268543223,1.0569,3622.3,3621.2,0.1580641]
[1733268543224,0.40431784,3622.1,3621.2,0.1580641]
[1733268543426,0.25743843,3622.0,3621.4,2.76132]
[1733268543628,0.14687941,3622.1,3621.4,2.76132]
[1733268543847,0.25739551,3622.0,3621.4,2.76132]
[1733268544046,0.14687941,3622.1,3621.2,0.1580641]
[1733268544216,0.25740126,3622.0,3621.2,0.1580641]
[1733268544435,0.25740126,3621.9,3621.2,0.1580641]
[1733268544771,1.24420703,3621.8,3621.2,0.1580641]
[1733268544976,0.25740703,3621.8,3621.2,2.9195241]
[1733268545122,1.0681,3622.2,3621.3,2.76142]
[1733268545472,0.64035874,3622.1,3621.3,2.76142]
[1733268545790,0.25747974,3622.0,3621.2,0.1580641]
[1733268546071,0.25742092,3622.6,3621.2,2.9195741]
[1733268546072,0.25747974,3621.9,3621.2,2.9195741]
[1733268546270,0.25747974,3621.8,3621.2,2.9195741]
[1733268546468,0.25747974,3621.7,3621.2,0.1580641]
[1733268546762,0.2574831,3621.6,3621.2,0.1580641]
[1733268546920,1.0471,3622.1,3621.2,0.1580641]
[1733268547122,0.66944867,3622.0,3621.2,0.1580641]
[1733268547328,1.0181,3621.8,3621.2,0.1580641]
[1733268547635,0.25748026,3621.7,3621.2,0.1580641]
[1733268547836,0.25748026,3621.6,3621.2,0.1580641]
[1733268548136,1.0566,3621.4,3621.2,0.1580641]
[1733268548851,0.66504253,3621.3,3621.2,0.1580641]
[1733268549054,0.25750957,3621.3,3621.2,0.1580641]
[1733268549251,3.43097513,3621.3,3621.2,0.1580641]
[1733268549560,1.32250957,3621.3,3621.2,0.1580641]
[1733268549831,1.32250957,3621.3,3621.2,0.6580641]
[1733268550082,2.20987073,3621.3,3621.2,0.6580641]
[1733268550885,5.22871157,3621.3,3621.2,0.6580641]
[1733268552063,2.46728157,3621.3,3621.2,0.6580641]
[1733268552268,1.73454513,3621.3,3621.2,0.6580641]
[1733268552574,4.08393957,3621.3,3621.2,0.6580641]
[1733268552729,4.75338597,3621.3,3621.2,0.6580641]
[1733268553455,4.34135041,3621.3,3621.2,0.6580641]
[1733268553966,4.75338597,3621.3,3621.2,0.6580641]
[1733268554269,8.50484957,3621.3,3621.2,0.6580641]
[1733268554471,0.9943,3620.5,3620.0,0.0552]
[1733268554779,3.75635,3620.5,3620.0,0.0552]
[1733268555077,3.39475951,3620.4,3620.0,0.0552]
[1733268555263,2.76235,3620.2,3620.0,0.0552]
[1733268555469,0.375635,3620.4,3620.0,0.0552]
[1733268555772,1.0233,3620.2,3620.0,0.0552]
[1733268556134,2.76235,3620.1,3620.0,0.0552]
[1733268556223,3.1784785,3620.1,3620.0,0.0552]
[1733268556428,4.45851091,3620.1,3620.0,0.0552]
[1733268558169,1.69616091,3620.1,3620.0,0.0552]
[1733268558352,1.0233,3620.1,3620.0,0.0552]
[1733268561830,0.9739,3620.6,3620.0,0.0552]
[1733268562988,2.76234,3620.2,3620.0,0.0552]
[1733268563132,3.79285,3620.1,3620.0,0.0552]
[1733268563574,4.0491429,3620.1,3620.0,0.0552]
[1733268563869,4.49506367,3620.1,3620.0,0.0552]
[1733268567382,5.76281,3619.5,3619.4,1.5]
[1733268567550,7.0020029,3619.5,3619.4,1.5]
[1733268567893,7.41206765,3619.5,3619.4,1.5]
[1733268568066,8.403595,3619.5,3619.4,1.5]
[1733268568265,5.89774919,3619.5,3619.4,1.5]
[1733268568452,2.640785,3619.5,3619.4,1.5]
[1733268568712,1.2391929,3619.5,3619.4,1.5]
[1733268569678,4.0020029,3619.5,3619.4,1.5]
[1733268569878,1.2391929,3619.5,3619.4,0.75]
[1733268570259,4.0020029,3619.5,3619.4,0.75]
[1733268571562,3.74571,3619.5,3619.4,0.75]
[1733268571779,4.37733292,3619.5,3619.4,0.75]
[1733268572287,7.37733292,3619.5,3619.4,0.75]
[1733268572596,8.04568265,3619.5,3619.4,0.75]
[1733268573593,7.788616,3619.5,3619.4,0.12772732]
[1733268573801,8.04579793,3619.5,3619.4,0.12772732]
[1733268574155,2.764,3618.0,3617.6,0.1580641]
[1733268574356,0.38311,3617.9,3617.6,0.1580641]
[1733268574594,1.0671,3618.2,3617.6,0.1580641]
[1733268575171,2.76388,3618.1,3617.6,0.1580641]
[1733268575894,1.0671,3618.2,3617.6,0.1580641]
[1733268576068,3.83094,3618.2,3617.6,0.1580641]
[1733268577194,3.79249,3618.1,3617.6,0.1580641]
[1733268577511,1.0286,3618.1,3617.6,0.1580641]
[1733268578128,3.0,3617.9,3617.6,0.1580641]
[1733268578691,1.0362,3618.4,3617.6,0.1580641]
[1733268578864,3.25732194,3618.3,3617.6,0.1580641]
[1733268579058,0.25732194,3618.2,3617.6,0.1580641]
[1733268579259,0.25732194,3618.1,3617.6,0.1580641]
[1733268579559,0.25732194,3618.0,3617.6,0.1580641]
[1733268579782,0.4705237,3618.3,3617.6,0.1580641]
[1733268579783,2.76418,3617.7,3617.6,0.1580641]
[1733268579999,0.65979213,3617.7,3617.6,0.1580641]
[1733268580223,3.02150194,3617.7,3617.6,0.1580641]
[1733268580695,3.27871787,3617.7,3617.6,0.1580641]
[1733268581095,0.51453787,3617.7,3617.6,0.1580641]
[1733268581317,0.25732194,3617.7,3617.6,0.1580641]
[1733268581708,0.25719485,3617.7,3617.6,0.1580641]
[1733268581896,0.65964034,3617.7,3617.6,0.1580641]
[1733268582091,0.25719485,3617.7,3617.6,0.1580641]
[1733268584500,7.09247485,3617.7,3617.6,0.1580641]
[1733268584697,7.76116066,3617.7,3617.6,0.1580641]
[1733268586645,7.34964889,3617.7,3617.6,0.1580641]
[1733268588434,11.34964889,3617.7,3617.6,0.1580641]
[1733268588637,12.24664589,3617.7,3617.6,0.1580641]
[1733268588803,12.76036183,3617.7,3617.6,0.1580641]
[1733268590264,8.76036183,3617.7,3617.6,0.1580641]
[1733268591949,0.51371594,3617.7,3617.6,0.1580641]
[1733268592113,0.25695594,3617.7,3617.6,0.1580641]
[1733268592316,0.9848,3618.1,3617.6,0.1580641]
[1733268592858,4.00566737,3618.1,3617.6,0.1580641]
[1733268593150,3.27789331,3618.0,3617.6,0.1580641]
[1733268593453,0.94018264,3617.9,3617.6,0.1580641]
[1733268594725,3.0,3617.9,3617.6,0.1580641]
[1733268594960,0.51391331,3617.8,3617.6,0.1580641]
[1733268595535,3.0,3617.7,3617.6,0.1580641]
[1733268595729,3.51391331,3617.7,3617.6,0.1580641]
[1733268595941,0.51391331,3617.7,3617.6,0.1580641]
[1733268596115,0.62779333,3617.7,3617.6,0.1580641]
[1733268596345,1.14170664,3617.7,3617.6,0.1580641]
[1733268597363,0.62779333,3617.7,3617.6,0.1580641]
[1733268597902,0.62779333,3617.7,3617.6,2.66338078]
[1733268597903,0.25695737,3617.7,3617.6,2.66338078]
[1733268598105,0.51391331,3618.2,3617.6,3.64298078]
[1733268598303,0.1,3619.0,3617.6,3.64298078]
[1733268598304,0.51391331,3618.1,3617.6,3.64298078]
[1733268598462,3.0,3618.3,3617.6,3.64298078]
[1733268598463,0.51391331,3618.0,3617.6,3.64298078]
[1733268598662,3.51533782,3618.2,3617.6,3.64298078]
[1733268598858,1.0730095,3618.1,3617.6,3.64298078]
[1733268599102,0.46380681,3618.0,3617.6,3.64298078]
[1733268599262,0.2061379,3617.9,3617.6,3.64298078]
[1733268599463,0.2061379,3617.8,3617.6,3.64298078]
[1733268599761,0.2061379,3617.7,3617.6,8.91255746]
[1733268599960,0.51555606,3619.3,3617.9,2.76401]
[1733268600183,0.51555606,3619.2,3618.6,2.76346]
[1733268600375,0.28747139,3620.3,3617.6,6.16083243]
[1733268600376,0.51555606,3619.1,3618.9,1.0492]
[1733268600700,0.9822,3620.0,3618.9,1.0492]
[1733268600701,0.51555606,3619.9,3618.9,1.0492]
[1733268601007,0.94157567,3619.8,3618.9,1.0492]
[1733268601219,2.7629,3619.4,3618.9,1.0492]
[1733268601433,0.51560641,3619.3,3619.0,2.76319]
[1733268601720,0.51560641,3619.2,3618.9,1.0492]
[1733268601921,0.51560641,3619.1,3618.9,1.0492]
[1733268602078,2.76275,3619.6,3618.9,1.0492]
[1733268602288,3.6802881,3619.5,3618.9,1.0492]
[1733268602479,0.51575026,3619.4,3618.9,1.0492]
[1733268602678,0.51575026,3619.3,3618.9,1.0492]
[1733268602875,3.02048838,3619.7,3618.9,1.0492]
[1733268603181,0.51575472,3619.6,3618.9,1.0492]
[1733268603517,0.51575472,3619.6,3618.9,3.81246]
[1733268603518,0.51575472,3619.5,3618.9,3.81246]
[1733268603714,0.25792634,3619.5,3618.9,1.0492]
[1733268603894,0.51575472,3619.7,3618.9,1.0492]
[1733268604102,0.51575472,3619.6,3618.9,1.0492]
[1733268604361,0.5156616,3619.5,3618.9,1.0492]
[1733268604610,0.32783516,3619.5,3618.9,1.0492]
[1733268604808,0.84349676,3619.5,3618.9,1.0492]
[1733268605110,2.76297,3619.3,3618.4,1.0632]
[1733268605287,2.76313,3619.1,3618.4,1.0632]
[1733268605494,2.76327,3618.9,3618.4,1.0632]
[1733268605717,1.0496,3619.4,3618.4,1.0632]
[1733268605718,2.76315,3619.1,3618.4,1.0632]
[1733268605923,1.0496,3619.4,3617.5,5.26961668]
[1733268605924,0.51541552,3618.8,3617.5,2.50531668]
[1733268606109,3.0,3619.2,3618.2,2.7638]
[1733268606319,0.25770776,3619.1,3618.3,1.0291]
[1733268606697,0.25770776,3619.3,3618.6,2.76348]
[1733268606886,0.25770776,3619.3,3618.8,1.0293]
[1733268607080,0.25770776,3619.9,3619.0,2.76318]
[1733268607285,0.25770776,3619.9,3618.8,1.0293]
[1733268607286,3.02029776,3619.8,3618.8,1.0293]
[1733268607496,0.25770776,3619.7,3618.8,1.0293]
[1733268607728,0.25753601,3619.7,3618.8,3.79263]
[1733268607893,3.02012601,3619.8,3618.8,3.79263]
[1733268608097,0.9944,3620.1,3618.8,3.79263]
[1733268608098,0.55954861,3619.7,3618.8,1.0293]
[1733268608309,0.25753601,3620.0,3619.0,2.76312]
[1733268608735,0.25753601,3619.9,3619.0,2.76312]
[1733268608902,0.25753601,3619.9,3618.8,1.0293]
[1733268609108,0.25753601,3619.9,3619.1,2.7631]
[1733268609309,0.7014286,3619.8,3618.9,2.76324]
[1733268609718,0.25753601,3620.0,3618.8,1.0293]
[1733268609955,3.0,3619.4,3618.3,1.045]
[1733268610255,2.76314,3619.1,3618.3,1.045]
[1733268610422,2.76281,3619.5,3618.3,1.045]
[1733268610626,2.76321,3619.0,3618.3,1.045]
[1733268611009,2.76327,3618.9,3618.3,1.045]
[1733268611226,2.763,3619.3,3618.3,1.045]
[1733268611227,2.76336,3618.8,3618.3,1.045]
[1733268611436,0.276336,3618.7,3617.3,2.76443]
[1733268611667,2.76328,3618.9,3617.3,2.76443]
[1733268611871,3.02072962,3618.8,3618.0,1.0728]
[1733268612161,2.76337,3618.8,3618.0,1.0728]
[1733268612366,0.9806,3619.0,3618.0,1.0728]
[1733268612525,2.76337,3618.8,3618.0,1.0728]
[1733268612881,0.25739767,3618.7,3618.0,1.0728]
[1733268613080,0.25739767,3618.7,3618.0,3.83674]
[1733268613365,0.63176054,3618.9,3618.0,3.83674]
[1733268614035,0.63176054,3618.9,3618.0,1.0728]
[1733268614221,2.76328,3618.9,3618.0,1.0728]
[1733268614422,2.76337,3618.8,3618.0,1.0728]
[1733268614724,0.9997,3619.3,3618.0,1.0728]
[1733268614923,2.76325,3619.0,3618.0,1.0728]
[1733268615120,0.25734433,3618.9,3618.0,1.0728]
[1733268615319,0.9997,3619.3,3618.3,2.50531668]
[1733268615572,0.24073617,3619.2,3618.3,2.50531668]
[1733268615718,0.4980805,3619.2,3618.5,0.9853]
[1733268616227,4.026,3619.6,3618.5,0.9853]
[1733268616228,3.0,3619.3,3618.5,0.9853]
[1733268616475,0.25734433,3619.2,3618.5,0.9853]
[1733268618047,0.25734433,3619.5,3618.8,1.0178]
[1733268618359,3.78011,3619.8,3618.8,1.0178]
[1733268618360,0.25734433,3619.7,3618.8,3.78113]
[1733268618684,0.25734433,3619.7,3618.8,1.0178]
[1733268619493,0.30199543,3619.6,3618.8,1.0178]
[1733268619660,0.25734433,3620.0,3619.1,2.50531668]
[1733268619842,0.25734433,3620.0,3619.2,3.80112]
[1733268620261,2.76243,3620.0,3619.2,1.0381]
[1733268620422,0.25734433,3620.1,3619.2,1.0381]
[1733268620700,0.55930876,3620.0,3619.2,3.80111]
[1733268620894,0.25734433,3619.9,3619.2,1.0381]
[1733268621064,0.25764622,3619.9,3619.2,3.80112]
[1733268621317,0.25764622,3619.9,3619.4,2.76283]
[1733268621584,0.25764622,3620.3,3619.4,2.76283]
[1733268621738,0.25764622,3620.2,3619.2,1.0381]
[1733268621937,0.25764622,3620.1,3619.2,1.0381]
[1733268622135,3.02008622,3620.0,3619.2,1.0381]
[1733268622371,2.76272,3619.7,3619.2,1.0381]
[1733268622570,0.25764622,3619.6,3618.8,1.11002637]
[1733268622779,2.7628,3619.6,3618.8,1.11002637]
[1733268622996,3.02046622,3619.5,3618.8,1.11002637]
[1733268623276,0.25764622,3619.4,3618.8,1.11002637]
[1733268623636,0.25764622,3619.6,3619.1,2.50531668]
[1733268623837,0.25764622,3620.0,3619.2,0.9873]
[1733268624045,0.25764622,3619.9,3619.2,0.9873]
[1733268624272,0.41960692,3620.0,3619.2,0.9873]
[1733268624502,0.25764622,3620.0,3619.2,0.9873]
[1733268624644,0.21149367,3620.2,3619.2,0.9873]
[1733268624645,0.25764622,3620.1,3619.4,2.76287]
[1733268624844,0.25764622,3620.0,3619.6,2.76271]
[1733268625146,2.88324201,3621.2,3619.7,3.81475]
[1733268625147,0.25764622,3620.6,3619.7,3.81475]
[1733268625346,0.25764622,3620.5,3619.7,3.81475]
[1733268625672,0.25764622,3620.4,3619.7,3.81475]
[1733268625854,0.25764622,3620.3,3619.7,3.81475]
[1733268626062,0.25764622,3620.2,3619.7,3.81475]
[1733268626271,3.25764622,3620.6,3619.7,3.81475]
[1733268626478,4.48702607,3621.2,3618.8,2.78210637]
[1733268626479,0.25764622,3620.5,3619.9,2.50531668]
[1733268626663,0.25764622,3621.0,3620.0,1.0395]
[1733268626848,0.25764622,3620.9,3620.0,1.0395]
[1733268627050,0.96691077,3621.2,3620.0,1.0395]
[1733268627051,0.25764622,3620.8,3620.2,2.76227]
[1733268627257,3.72845077,3621.2,3620.0,1.0395]
[1733268627258,0.25790034,3620.7,3620.0,1.0395]
[1733268627446,0.25790034,3620.6,3620.0,1.0395]
[1733268627767,0.25790034,3620.5,3620.0,1.0395]
[1733268627980,2.7618,3620.9,3620.0,1.0395]
[1733268627981,0.25790034,3620.8,3620.0,1.0395]
[1733268628176,3.34147537,3620.8,3620.0,1.0395]
[1733268628344,0.25794951,3620.7,3620.0,1.0395]
[1733268628548,2.76209,3620.5,3620.0,1.0395]
[1733268628792,0.25794951,3620.4,3619.5,5.26811668]
[1733268629104,3.0,3620.9,3619.6,1.0371]
[1733268629105,0.25794951,3620.3,3619.6,1.0371]
[1733268629271,0.25794951,3620.2,3619.6,3.79981]
[1733268629472,0.25794951,3620.1,3619.6,3.79981]
[1733268629780,0.25794951,3620.3,3619.6,3.79981]
[1733268629974,0.25794951,3620.3,3619.6,1.0371]
[1733268630187,0.25794951,3620.3,3620.0,1.0608]
[1733268630362,0.25794951,3621.1,3620.0,1.0608]
[1733268630565,0.25794951,3621.0,3620.1,2.76227]
[1733268630896,0.25794951,3620.9,3620.1,2.76227]
[1733268631064,0.25794951,3620.8,3620.3,5.26750668]
[1733268631394,0.25794951,3621.1,3620.4,0.9954]
[1733268631599,0.25794951,3621.0,3620.4,0.9954]
[1733268631765,3.0,3621.3,3620.4,0.9954]
[1733268631766,0.25794951,3621.2,3620.4,0.9954]
[1733268631950,0.25794951,3621.1,3620.7,2.50531668]
[1733268632154,0.25794951,3621.7,3620.9,2.76172]
[1733268632355,0.380988,3621.7,3621.0,0.9954]
[1733268632998,0.380988,3621.7,3621.1,2.76152]
[1733268633156,0.25794951,3622.1,3621.1,2.50531668]
[1733268633359,1.0488,3622.5,3621.5,2.50531668]
[1733268633573,1.30674951,3622.5,3621.6,0.9954]
[1733268633777,1.0488,3622.5,3621.6,0.9954]
[1733268634187,2.76107,3621.8,3621.6,0.9954]
[1733268634524,2.761,3621.9,3620.7,2.52414305]
[1733268634809,0.380923,3622.4,3620.7,2.52414305]
[1733268634810,2.76075,3622.2,3620.7,0.01882637]
[1733268635014,2.76129,3621.5,3620.7,1.0243]
[1733268635300,1.0055,3622.3,3620.7,2.50531668]
[1733268635510,2.76082,3622.2,3621.1,2.50531668]
[1733268635806,0.25702274,3622.1,3621.1,5.26688668]
[1733268636095,0.25698619,3622.1,3621.1,5.26688668]
[1733268636308,1.0055,3622.3,3620.9,3.78597]
[1733268636605,1.0055,3622.3,3620.9,1.0243]
[1733268636606,0.42623543,3622.2,3620.9,1.0243]
[1733268636900,0.68307936,3622.2,3621.2,2.76151]
[1733268637106,0.68307936,3622.2,3620.9,1.0243]
[1733268637270,2.76079,3622.2,3621.1,2.76153]
[1733268637613,2.76079,3622.2,3621.2,2.7615]
[1733268637789,1.0055,3622.3,3621.2,2.7615]
[1733268638147,2.76076,3622.2,3621.0,2.76165]
[1733268638305,0.376626,3622.1,3621.1,2.76152]
[1733268638508,2.76076,3622.2,3621.1,2.76152]
[1733268638795,3.76624,3622.3,3621.1,2.76153]
[1733268639208,2.76021,3622.9,3621.2,1.0864]
[1733268639406,2.76049,3622.6,3621.4,2.76129]
[1733268639568,1.0263,3622.4,3621.2,1.0864]
[1733268640101,2.76111,3621.8,3621.2,1.0864]
[1733268640261,2.76114,3621.7,3621.2,1.0864]
[1733268640458,2.76107,3621.8,3621.2,1.0864]
[1733268641597,1.0263,3622.4,3621.2,1.0864]
[1733268641598,2.76092,3622.0,3621.2,1.0864]
[1733268641808,0.276092,3622.0,3621.2,1.0864]
[1733268642012,2.76107,3621.8,3621.2,1.0864]
[1733268642379,2.76079,3622.2,3621.2,1.0864]
[1733268642582,2.76108,3621.8,3621.2,1.0864]
[1733268642910,1.0263,3622.4,3621.2,1.0864]
[1733268643265,2.76121,3621.6,3621.2,1.0864]
[1733268644513,2.76085,3622.1,3621.2,1.0864]
[1733268644665,2.7612,3621.7,3621.2,1.0864]
[1733268644869,3.037035,3622.0,3621.2,1.0864]
[1733268645072,2.76148,3621.3,3620.4,0.9889]
[1733268645312,2.76136,3621.5,3620.4,3.75101]